bitfinex-derivatives/quotes_ETHF0:USTF0_20241013
["timestamp","ask_amount","ask_price","bid_price","bid_amount"]
[1728813825647,0.40532,2467.5,2467.4,2.2339324]
[1728813825843,0.40532,2467.5,2467.4,1.06137993]
[1728813825844,1.46513811,2467.5,2467.4,1.06137993]
[1728813828452,1.99504717,2467.5,2467.4,1.06137993]
[1728813830645,0.40532,2467.5,2467.4,1.06137993]
[1728813830842,1.99504717,2467.5,2467.4,1.06137993]
[1728813831549,1.97592717,2467.6,2467.4,2.23500418]
[1728813831751,1.97592717,2467.6,2467.5,1.06137993]
[1728813831752,2.38124717,2467.6,2467.5,1.06137993]
[1728813832545,4.84432,2467.6,2467.5,1.45307993]
[1728813833150,0.79152,2467.6,2467.5,1.45307993]
[1728813837350,0.79152,2467.6,2467.5,0.3917]
[1728813837754,0.79152,2467.6,2467.5,1.45307993]
[1728813837952,6.43906123,2467.6,2467.5,1.45307993]
[1728813838251,6.43903201,2467.6,2467.5,0.3917]
[1728813838449,4.84432,2467.6,2467.5,0.3917]
[1728813839053,0.79152,2467.6,2467.5,0.3917]
[1728813840660,0.79152,2467.6,2467.5,1.45307993]
[1728813840856,0.79152,2467.6,2467.5,0.3917]
[1728813841357,2.3862843,2467.6,2467.5,1.45307993]
[1728813841757,0.79152,2467.6,2467.5,1.45307993]
[1728813841959,2.38626418,2467.6,2467.5,1.45307993]
[1728813842258,0.79152,2467.6,2467.5,1.45307993]
[1728813842457,2.38628315,2467.6,2467.5,1.45307993]
[1728813842657,2.38627427,2467.6,2467.5,1.45307993]
[1728813843655,0.79152,2467.6,2467.5,1.45307993]
[1728813844056,2.38628814,2467.6,2467.5,1.45307993]
[1728813844256,0.79152,2467.6,2467.5,1.45307993]
[1728813844661,0.79152,2467.6,2467.5,0.3917]
[1728813845162,0.79152,2467.6,2467.5,1.45307993]
[1728813845554,0.79152,2467.6,2467.5,0.3917]
[1728813845861,0.79152,2467.6,2467.5,1.45307993]
[1728813846054,2.38630737,2467.6,2467.5,1.45307993]
[1728813846354,0.79152,2467.6,2467.5,1.45307993]
[1728813849864,0.79152,2467.6,2467.5,0.3917]
[1728813851563,0.79152,2467.6,2467.5,1.45307993]
[1728813852460,2.38622107,2467.6,2467.5,1.45307993]
[1728813852656,0.79152,2467.6,2467.5,0.3917]
[1728813853663,2.38624292,2467.6,2467.5,0.3917]
[1728813853857,0.79152,2467.6,2467.5,0.3917]
[1728813854057,2.3862416,2467.6,2467.5,1.45307993]
[1728813854665,0.79152,2467.6,2467.5,1.45307993]
[1728813855167,2.38625394,2467.6,2467.5,2.6263484]
[1728813856765,2.38625394,2467.6,2467.5,1.45307993]
[1728813857566,0.79152,2467.6,2467.5,1.45307993]
[1728813862569,0.79152,2467.6,2467.5,2.62685449]
[1728813863669,0.79152,2467.6,2467.5,2.62687065]
[1728813864369,2.91115623,2467.6,2467.5,2.62687065]
[1728813864973,0.79152,2467.6,2467.5,1.56549072]
[1728813865167,0.79152,2467.6,2467.5,2.62768917]
[1728813865168,2.91115623,2467.6,2467.5,2.62768917]
[1728813865868,2.91115623,2467.6,2467.5,2.84695095]
[1728813866269,2.91115623,2467.6,2467.5,2.62768917]
[1728813866568,2.91115623,2467.6,2467.5,2.84697294]
[1728813867270,2.91115623,2467.6,2467.5,3.35393508]
[1728813868374,2.91115623,2467.6,2467.5,2.29217251]
[1728813868676,2.91115623,2467.6,2467.5,3.87902355]
[1728813872969,2.91115623,2467.6,2467.5,3.87939058]
[1728813874377,2.91115623,2467.6,2467.5,3.66010681]
[1728813874676,2.91115623,2467.6,2467.5,3.87948151]
[1728813877673,2.91115623,2467.6,2467.5,2.70488788]
[1728813877976,2.91115623,2467.6,2467.5,3.87956078]
[1728813878277,2.91115623,2467.6,2467.5,3.15322394]
[1728813878472,2.91115623,2467.6,2467.5,3.6601849]
[1728813878672,2.91115623,2467.6,2467.5,3.8795561]
[1728813879875,2.91115623,2467.6,2467.5,4.386517]
[1728813880178,2.91115623,2467.6,2467.5,3.87955602]
[1728813881875,2.91115623,2467.6,2467.5,3.66018484]
[1728813882068,2.91115623,2467.6,2467.5,3.87955122]
[1728813882481,2.91115623,2467.6,2467.5,3.87955985]
[1728813885467,2.91115623,2467.6,2467.5,3.48785985]
[1728813885673,0.79152,2467.6,2467.5,3.48787679]
[1728813885878,0.79152,2467.6,2467.5,2.45702763]
[1728813885879,5.14320672,2467.6,2467.5,2.45702763]
[1728813886080,5.14320672,2467.6,2467.5,2.23764413]
[1728813887376,5.14314448,2467.6,2467.5,2.23771151]
[1728813887882,5.14314448,2467.6,2467.5,1.0629626]
[1728813889879,2.44452448,2467.6,2467.5,1.0629626]
[1728813890074,0.96039001,2467.7,2467.5,15.59070795]
[1728813890274,1.06411624,2467.6,2467.5,0.40532]
[1728813890474,1.06375111,2467.7,2467.6,4.0528]
[1728813890687,1.06375111,2467.7,2467.6,12.15098128]
[1728813890882,1.06375111,2467.8,2467.6,18.67181626]
[1728813891183,1.06375111,2467.8,2467.7,8.77676452]
[1728813891481,1.06375111,2467.9,2467.7,14.9514932]
[1728813891680,1.06375111,2467.9,2467.8,1.91085025]
[1728813891881,1.06375111,2467.9,2467.8,1.90973837]
[1728813892185,1.06375111,2467.9,2467.8,5.96173837]
[1728813892475,1.06375111,2468.0,2467.8,5.96173837]
[1728813892679,1.06375111,2468.0,2467.9,2.99437743]
[1728813892874,1.06375111,2468.0,2467.9,2.7752376]
[1728813893082,1.06375111,2468.0,2467.9,3.2820747]
[1728813893278,1.06375111,2468.0,2467.9,2.75133026]
[1728813893485,1.06375111,2468.0,2467.9,2.24449316]
[1728813895383,1.06375111,2468.0,2467.9,1.06076075]
[1728813896284,1.45275111,2468.1,2467.9,1.06076075]
[1728813896485,1.06375111,2468.0,2467.9,1.06076075]
[1728813896873,1.45275111,2468.1,2467.9,1.06076075]
[1728813898787,1.45275111,2468.1,2467.8,1.79196075]
[1728813899387,2.27088111,2468.1,2467.8,1.79196075]
[1728813900379,2.27088111,2468.1,2467.9,1.06076075]
[1728813900781,1.86565111,2468.1,2467.9,1.06076075]
[1728813901083,2.27088111,2468.1,2467.9,1.06076075]
[1728813901590,2.27088111,2468.1,2467.8,1.79196075]
[1728813903379,0.8019,2468.1,2467.8,1.79196075]
[1728813904089,1.20713,2468.1,2467.8,1.79196075]
[1728813904488,0.8019,2468.1,2467.8,1.79196075]
[1728813905080,1.20713,2468.1,2467.8,1.79196075]
[1728813905284,1.06375111,2468.2,2467.9,1.06076075]
[1728813905491,1.06375111,2468.4,2468.1,0.40523]
[1728813905690,2.93225335,2468.6,2468.2,1.1814]
[1728813905691,1.06375111,2468.5,2468.2,1.1814]
[1728813905893,1.46891111,2468.5,2468.2,2.24216075]
[1728813906087,1.46891111,2468.5,2468.2,1.1814]
[1728813907397,0.40516,2468.5,2468.2,1.1814]
[1728813908492,2.27291111,2468.6,2468.2,1.1814]
[1728813909493,0.40516,2468.5,2468.2,1.1814]
[1728813910403,2.27290111,2468.6,2468.2,1.1814]
[1728813913395,1.20915,2468.6,2468.2,1.1814]
[1728813915204,0.40517,2468.5,2468.2,1.1814]
[1728813916508,0.40517,2468.5,2468.2,0.7674]
[1728813917403,0.40517,2468.5,2468.2,0.4217]
[1728813919501,0.804,2468.6,2468.2,0.4217]
[1728813920106,1.86775111,2468.6,2468.2,0.4217]
[1728813920502,0.804,2468.6,2468.2,0.4052]
[1728813920707,0.804,2468.6,2468.3,0.7382]
[1728813922807,1.20914,2468.6,2468.3,0.7382]
[1728813929513,0.804,2468.6,2468.3,0.7382]
[1728813930714,1.20915,2468.6,2468.3,0.7382]
[1728813931312,0.804,2468.6,2468.3,0.7382]
[1728813933508,1.20915,2468.6,2468.3,0.7382]
[1728813933814,1.20915,2468.6,2468.3,1.79896075]
[1728813934022,1.20915,2468.6,2468.3,0.7382]
[1728813934314,1.20915,2468.6,2468.3,1.79896075]
[1728813935415,2.27290111,2468.6,2468.3,1.79896075]
[1728813936913,0.804,2468.6,2468.4,1.06076075]
[1728813937217,1.86775111,2468.6,2468.4,1.06076075]
[1728813937612,2.27290111,2468.6,2468.4,1.06076075]
[1728813938712,1.86775111,2468.6,2468.4,1.06076075]
[1728813939414,2.27290111,2468.6,2468.4,1.06076075]
[1728813939621,1.86775111,2468.6,2468.4,1.06076075]
[1728813939913,2.27290111,2468.6,2468.4,1.06076075]
[1728813943620,1.86775111,2468.6,2468.4,1.06076075]
[1728813944216,2.27290111,2468.6,2468.4,1.06076075]
[1728813944616,1.06375111,2468.6,2468.4,1.06076075]
[1728813944820,0.3847,2468.5,2468.4,1.06076075]
[1728813945414,0.3847,2468.5,2468.4,2.24250542]
[1728813947016,0.3847,2468.5,2468.4,2.24251596]
[1728813947217,1.44845111,2468.5,2468.4,2.24251596]
[1728813948314,1.44845111,2468.5,2468.4,2.7732604]
[1728813949427,1.44845111,2468.5,2468.4,3.49684902]
[1728813949621,1.44845111,2468.5,2468.4,2.99010528]
[1728813949922,1.44845111,2468.5,2468.4,3.49684902]
[1728813950920,1.44845111,2468.5,2468.4,2.99014303]
[1728813951225,1.44845111,2468.5,2468.4,3.27999896]
[1728813951521,1.44845111,2468.5,2468.4,3.49688144]
[1728813951719,1.44845111,2468.5,2468.4,4.00362004]
[1728813951927,1.44845111,2468.5,2468.4,4.00471224]
[1728813954216,1.44845111,2468.5,2468.4,2.41320705]
[1728813954620,1.44845111,2468.5,2468.4,2.41327027]
[1728813955526,1.44845111,2468.5,2468.4,4.00412895]
[1728813956125,1.44845111,2468.5,2468.4,2.41327027]
[1728813956733,1.44845111,2468.5,2468.4,2.4133671]
[1728813957932,1.44845111,2468.5,2468.4,1.90662854]
[1728813961039,1.44845111,2468.5,2468.4,1.68968099]
[1728813961234,1.44845111,2468.5,2468.4,3.52264109]
[1728813961737,1.44845111,2468.5,2468.4,4.02938403]
[1728813962941,0.3847,2468.5,2468.4,1.90665535]
[1728813963140,1.97859703,2468.5,2468.4,1.90665535]
[1728813963342,2.38375703,2468.5,2468.4,3.49809153]
[1728813963544,0.78986,2468.5,2468.4,3.49809153]
[1728813963844,2.91811335,2468.5,2468.4,3.49809153]
[1728813964645,0.78986,2468.5,2468.4,3.49822635]
[1728813964941,0.78986,2468.5,2468.4,2.991438]
[1728813965133,2.91811335,2468.5,2468.4,2.991438]
[1728813965334,2.91811335,2468.5,2468.4,2.77438042]
[1728813965642,6.96931335,2468.5,2468.4,1.18294424]
[1728813965937,6.96931335,2468.5,2468.4,1.06129207]
[1728813966141,4.84106,2468.5,2468.4,2.24521196]
[1728813966444,4.84106,2468.5,2468.4,1.06129207]
[1728813966646,6.96859212,2468.5,2468.4,2.24504178]
[1728813967946,2.91739212,2468.5,2468.4,2.24504178]
[1728813969546,2.91739212,2468.5,2468.4,2.24478344]
[1728813970343,2.91739212,2468.5,2468.4,1.06129207]
[1728813974458,2.51223212,2468.5,2468.4,2.24454162]
[1728813974643,1.9796617,2468.5,2468.4,4.05295679]
[1728813974846,1.06321433,2468.5,2468.4,7.24281667]
[1728813975142,1.06321433,2468.5,2468.4,9.77072535]
[1728813975344,1.06321433,2468.5,2468.4,12.52176227]
[1728813976345,1.06321433,2468.5,2468.4,12.52162031]
[1728813976753,1.46601433,2468.7,2468.6,0.40514]
[1728813977053,1.06321433,2468.7,2468.6,4.43264127]
[1728813977252,1.06321433,2468.7,2468.6,2.31205579]
[1728813977656,1.06321433,2468.7,2468.6,2.65755579]
[1728813977959,1.06321433,2468.7,2468.6,2.25241579]
[1728813978345,1.06321433,2468.7,2468.6,1.6899368]
[1728813978550,1.06321433,2468.7,2468.6,1.18324955]
[1728813978946,1.06321433,2468.7,2468.6,1.90677961]
[1728813979154,1.06321433,2468.7,2468.6,2.31191961]
[1728813979751,1.06321433,2468.7,2468.6,2.60176565]
[1728813979950,1.06321433,2468.7,2468.6,2.81859357]
[1728813980347,1.06321433,2468.7,2468.6,4.0032211]
[1728813980548,1.90511433,2468.8,2468.7,0.40513]
[1728813980746,1.90511433,2468.8,2468.7,3.90155402]
[1728813981457,0.8419,2468.8,2468.7,3.39479745]
[1728813981757,0.8419,2468.8,2468.7,3.90145282]
[1728813982149,1.06321433,2468.9,2468.7,3.49632282]
[1728813982347,1.06321433,2469.0,2468.9,0.40509]
[1728813982658,1.06321433,2469.0,2468.9,3.37092463]
[1728813982849,2.4200617,2469.1,2469.0,0.40508]
[1728813982850,1.88831433,2469.1,2469.0,0.40508]
[1728813983055,1.88831433,2469.1,2469.0,3.17694838]
[1728813983249,1.88831433,2469.1,2469.0,2.76994251]
[1728813983558,0.8251,2469.1,2469.0,2.24012422]
[1728813984159,0.8251,2469.1,2469.0,1.05880054]
[1728813986658,0.8251,2469.1,2468.9,1.46389054]
[1728813986855,0.8251,2469.1,2469.0,1.05880054]
[1728813987359,0.8251,2469.1,2468.9,1.46389054]
[1728813988951,0.8251,2469.1,2468.9,1.05880054]
[1728813990861,1.23018,2469.1,2468.8,1.05880054]
[1728813992959,0.40509,2469.0,2468.8,1.05880054]
[1728813993159,0.40509,2469.0,2468.7,1.05880054]
[1728813993563,0.40509,2469.0,2468.6,1.58861883]
[1728813993564,0.40509,2469.0,2468.6,1.05880054]
[1728813993760,1.88831433,2469.1,2468.6,1.05880054]
[1728813993962,0.4051,2468.9,2468.6,1.05880054]
[1728813994261,0.4083,2468.8,2468.5,2.32996054]
[1728813994559,0.4225,2468.7,2468.6,1.05880054]
[1728813995267,0.4225,2468.7,2468.6,1.46394054]
[1728813998969,0.4225,2468.7,2468.6,1.05880054]
[1728813999160,0.4225,2468.7,2468.5,1.05880054]
[1728814001765,0.4225,2468.7,2468.6,1.46394054]
[1728814001968,0.4225,2468.7,2468.5,1.46395054]
[1728814002265,0.4225,2468.7,2468.6,1.05880054]
[1728814007470,0.82763,2468.7,2468.6,1.05880054]
[1728814007665,0.82763,2468.7,2468.5,4.26660054]
[1728814008062,0.4225,2468.7,2468.5,4.26660054]
[1728814009369,0.4225,2468.7,2468.5,1.05880054]
[1728814009570,0.4225,2468.7,2468.5,4.26660054]
[1728814010269,0.4225,2468.7,2468.6,1.05880054]
[1728814013573,0.4225,2468.7,2468.6,2.23968239]
[1728814016076,0.4225,2468.7,2468.6,2.23993875]
[1728814016279,0.4225,2468.7,2468.6,1.18113776]
[1728814016479,0.4225,2468.7,2468.6,2.76975659]
[1728814017379,0.4225,2468.7,2468.6,2.98629413]
[1728814018580,0.4225,2468.7,2468.6,3.4929778]
[1728814019979,0.4225,2468.7,2468.6,3.49283496]
[1728814020674,0.4225,2468.7,2468.6,3.4938571]
[1728814021269,0.4225,2468.7,2468.6,1.90523827]
[1728814022678,0.4225,2468.7,2468.6,1.68884417]
[1728814022886,0.4225,2468.7,2468.6,1.90528947]
[1728814024072,0.4225,2468.7,2468.6,1.90546371]
[1728814026578,0.4225,2468.7,2468.6,1.68901841]
[1728814026774,0.4225,2468.7,2468.6,1.90548085]
[1728814026975,0.4225,2468.7,2468.6,1.39879658]
[1728814027284,0.4225,2468.7,2468.6,2.31062503]
[1728814028581,0.4225,2468.7,2468.6,4.02607051]
[1728814028782,0.4225,2468.7,2468.6,4.02609382]
[1728814028981,0.4225,2468.7,2468.6,2.31064834]
[1728814029179,0.4225,2468.7,2468.6,2.65634834]
[1728814029383,0.4225,2468.7,2468.6,4.77693382]
[1728814029884,0.4225,2468.7,2468.6,5.12339953]
[1728814030273,0.4225,2468.7,2468.6,5.25006608]
[1728814030683,0.4225,2468.7,2468.6,5.25033956]
[1728814030882,1.06321433,2468.9,2468.8,0.40511]
[1728814031084,1.06321433,2468.9,2468.8,3.39487556]
[1728814031482,1.06321433,2468.9,2468.8,3.90153137]
[1728814033483,1.06321433,2468.9,2468.8,3.90244705]
[1728814034178,2.4067617,2469.0,2468.8,3.90244705]
[1728814034485,2.4067617,2469.0,2468.9,2.24430652]
[1728814035287,0.8118,2469.0,2468.9,2.24430652]
[1728814036290,0.8118,2469.0,2468.9,1.39993996]
[1728814037189,2.93933212,2469.0,2468.9,2.990749]
[1728814037489,2.93933212,2469.0,2468.9,3.49740251]
[1728814038092,2.93933212,2469.0,2468.9,3.49772919]
[1728814038790,2.93933212,2469.0,2468.9,2.99107568]
[1728814038993,2.93933212,2469.0,2468.9,3.49772954]
[1728814039692,3.34441212,2469.0,2468.9,2.24505073]
[1728814039887,1.21688,2469.0,2468.9,2.24505073]
[1728814040199,1.21688,2469.0,2468.9,1.06145092]
[1728814040393,1.21688,2469.0,2468.9,2.24540356]
[1728814040691,3.34393919,2469.0,2468.9,2.24540356]
[1728814041093,4.8622,2469.0,2468.8,1.59080904]
[1728814041294,2.53219472,2468.9,2468.8,1.59080904]
[1728814041594,2.53219472,2468.9,2468.8,2.77480626]
[1728814041801,6.58259472,2468.9,2468.8,2.77480626]
[1728814042796,6.58259472,2468.9,2468.8,2.9915501]
[1728814043007,6.58259472,2468.9,2468.8,3.4982455]
[1728814043399,0.40511,2468.8,2468.7,1.59080904]
[1728814043610,2.94810518,2468.8,2468.7,3.49397808]
[1728814043792,2.94810518,2468.8,2468.7,1.3964496]
[1728814043998,2.94810518,2468.8,2468.7,1.3964686]
[1728814044495,2.94810518,2468.8,2468.7,1.17969462]
[1728814044695,2.94810518,2468.8,2468.7,1.39645759]
[1728814045208,2.94810518,2468.8,2468.7,1.17969462]
[1728814046103,10.4662,2468.8,2468.5,1.59080904]
[1728814046400,3.2078,2468.6,2468.2,3.71139452]
[1728814046605,2.65895277,2468.4,2468.1,1.59080904]
[1728814046907,2.53242854,2468.2,2468.1,1.59080904]
[1728814047103,1.99945,2468.2,2468.1,1.18007154]
[1728814048197,1.4675896,2468.2,2468.0,1.59080904]
[1728814048396,0.3961,2468.1,2468.0,1.59080904]
[1728814048599,0.3961,2468.1,2468.0,2.76920808]
[1728814049212,0.3961,2468.1,2468.0,1.17839904]
[1728814049820,0.3961,2468.1,2467.9,1.59080904]
[1728814049821,0.80133,2468.1,2467.9,1.59080904]
[1728814050105,0.4132,2468.0,2467.9,1.59080904]
[1728814050308,0.4132,2468.0,2467.9,1.17765559]
[1728814050604,0.4132,2468.0,2467.9,2.76846463]
[1728814051204,0.4132,2468.0,2467.9,1.17765559]
[1728814051807,0.4132,2468.0,2467.8,2.01200904]
[1728814052011,0.4132,2468.0,2467.8,0.4212]
[1728814052204,0.81846,2468.0,2467.8,0.4212]
[1728814052404,0.399,2467.9,2467.8,0.4212]
[1728814052811,0.80426,2467.9,2467.8,0.4212]
[1728814053007,0.80426,2467.9,2467.6,4.79860904]
[1728814053213,0.80426,2467.9,2467.6,5.18620904]
[1728814053606,0.80426,2467.9,2467.6,3.5954]
[1728814053807,0.399,2467.9,2467.6,3.5954]
[1728814054009,0.40529,2467.8,2467.6,3.5954]
[1728814054209,0.3887,2467.7,2467.6,3.5954]
[1728814054408,0.7982,2467.7,2467.6,3.5954]
[1728814063525,0.7982,2467.7,2467.6,0.3876]
[1728814069226,1.20349,2467.7,2467.6,0.3876]
[1728814069528,0.40531,2467.6,2467.4,0.8005]
[1728814069828,0.4177,2467.5,2467.4,0.8005]
[1728814070925,0.4177,2467.5,2467.4,0.386]
[1728814071621,0.82303,2467.5,2467.2,3.2078]
[1728814071929,0.3939,2467.4,2467.2,3.5906]
[1728814073124,0.4177,2467.5,2467.2,3.5906]
[1728814073324,0.79922,2467.6,2467.2,3.99597]
[1728814075026,0.79922,2467.6,2467.2,0.78817]
[1728814075327,0.79922,2467.6,2467.2,0.3828]
[1728814076332,0.79922,2467.6,2467.2,0.78817]
[1728814076935,0.79922,2467.6,2467.2,0.3828]
[1728814080232,0.3939,2467.6,2467.2,0.3828]
[1728814080428,0.40533,2467.5,2467.2,0.3828]
[1728814088733,0.3939,2467.6,2467.2,0.3828]
[1728814088933,0.40534,2467.4,2467.2,0.3828]
[1728814089338,0.4193,2467.3,2467.2,0.3828]
[1728814093039,0.4193,2467.3,2467.2,1.56106385]
[1728814095338,0.4193,2467.3,2467.2,3.15187289]
[1728814096339,0.4193,2467.3,2467.2,3.87543519]
[1728814097446,1.0623796,2467.5,2467.3,0.40536]
[1728814097642,1.0623796,2467.5,2467.3,1.99678509]
[1728814100149,1.0623796,2467.5,2467.4,1.17962884]
[1728814100850,1.0623796,2467.5,2467.3,1.59142509]
[1728814103159,1.0623796,2467.5,2467.4,1.17988499]
[1728814103361,2.79095,2467.6,2467.4,1.17988499]
[1728814103560,2.79095,2467.6,2467.3,1.59142509]
[1728814103864,1.06295558,2467.5,2467.4,1.17989502]
[1728814104060,2.79095,2467.6,2467.4,1.17989502]
[1728814104267,2.79095,2467.6,2467.3,1.59142509]
[1728814104567,2.79095,2467.6,2467.4,1.17994672]
[1728814104568,1.59424,2467.5,2467.4,1.17994672]
[1728814105161,1.59424,2467.5,2467.4,1.18014544]
[1728814105767,1.99956,2467.5,2467.4,1.18014544]
[1728814106964,1.99956,2467.5,2467.4,1.1803109]
[1728814108670,1.99956,2467.5,2467.4,1.39715645]
[1728814109170,1.99956,2467.5,2467.4,2.98858154]
[1728814109366,1.99956,2467.5,2467.4,3.27869588]
[1728814109675,1.99956,2467.5,2467.4,1.39717027]
[1728814110174,1.59424,2467.5,2467.4,2.98859536]
[1728814110365,1.59424,2467.5,2467.4,3.49555392]
[1728814110564,1.59424,2467.5,2467.4,3.27869455]
[1728814110769,1.99956,2467.5,2467.4,2.98861908]
[1728814110978,1.99956,2467.5,2467.4,2.98861878]
[1728814111171,1.99956,2467.5,2467.4,3.49557736]
[1728814111565,1.99956,2467.5,2467.4,3.49606476]
[1728814112671,1.59424,2467.5,2467.4,3.49606476]
[1728814113373,3.32393854,2467.6,2467.4,3.49606476]
[1728814113569,3.32393854,2467.6,2467.5,1.1807983]
[1728814114577,3.32393854,2467.6,2467.5,1.3977877]
[1728814115475,3.32393854,2467.6,2467.5,3.49616906]
[1728814115969,1.19672,2467.6,2467.5,1.90474397]
[1728814116169,1.19672,2467.6,2467.5,3.49686351]
[1728814117570,3.32536441,2467.6,2467.5,3.49686351]
[1728814118780,2.12864441,2467.6,2467.5,3.49686351]
[1728814119474,2.12864441,2467.6,2467.5,3.91496351]
[1728814120574,2.12864441,2467.6,2467.5,7.96776351]
[1728814120878,2.12864441,2467.6,2467.5,7.97060149]
[1728814121071,2.12864441,2467.6,2467.5,10.85930022]
[1728814121072,1.59622776,2467.6,2467.5,10.85930022]
[1728814121267,1.59622776,2467.6,2467.5,12.1443424]
[1728814121471,1.59622776,2467.6,2467.5,12.54927827]
[1728814121675,1.063964,2467.6,2467.5,10.02337279]
[1728814122281,1.063964,2467.6,2467.5,10.02313579]
[1728814122478,1.063964,2467.6,2467.5,12.14760708]
[1728814124080,1.063964,2467.6,2467.5,8.09480708]
[1728814124880,1.909464,2467.6,2467.5,4.9217701]
[1728814125187,1.909464,2467.6,2467.5,4.92154191]
[1728814125485,1.909464,2467.6,2467.5,4.79481617]
[1728814125676,1.909464,2467.6,2467.5,4.44781513]
[1728814125977,1.909464,2467.6,2467.5,3.94089644]
[1728814126185,1.909464,2467.6,2467.5,4.79478199]
[1728814126382,1.909464,2467.6,2467.5,4.44780749]
[1728814127383,0.8455,2467.6,2467.5,4.44651762]
[1728814128381,1.909464,2467.6,2467.5,2.32204633]
[1728814128684,1.909464,2467.6,2467.5,3.91468176]
[1728814128878,1.909464,2467.6,2467.5,3.91468314]
[1728814129681,1.909464,2467.6,2467.5,3.69785299]
[1728814129882,1.909464,2467.6,2467.5,3.91463863]
[1728814130087,1.909464,2467.6,2467.5,2.72732182]
[1728814130286,1.909464,2467.6,2467.5,2.32184908]
[1728814130481,1.909464,2467.6,2467.5,3.91437731]
[1728814130981,0.8455,2467.6,2467.5,2.32184908]
[1728814133388,0.8455,2467.6,2467.5,1.59815014]
[1728814133588,0.8455,2467.6,2467.5,1.81490224]
[1728814133790,0.8455,2467.6,2467.5,2.32181325]
[1728814134990,0.8455,2467.6,2467.5,2.72713325]
[1728814136294,0.8455,2467.6,2467.5,2.32181325]
[1728814136688,0.8455,2467.6,2467.5,1.14176311]
[1728814137088,0.8455,2467.6,2467.5,0.4181]
[1728814137294,0.8455,2467.6,2467.5,0.82342]
[1728814137494,0.8455,2467.6,2467.5,1.04015161]
[1728814137694,0.8455,2467.6,2467.5,1.54706699]
[1728814138092,0.3887,2467.7,2467.5,1.14174699]
[1728814138294,3.2078,2468.2,2467.6,4.33675699]
[1728814138295,0.40523,2468.1,2467.6,4.33675699]
[1728814138492,0.40523,2468.1,2467.7,1.12882827]
[1728814138692,0.40523,2468.1,2467.6,4.0313]
[1728814138994,0.40524,2468.0,2467.7,0.21666751]
[1728814139299,0.40524,2468.0,2467.6,4.0313]
[1728814139599,0.3995,2467.9,2467.7,0.72354369]
[1728814139794,0.3995,2467.9,2467.6,4.0313]
[1728814139994,0.3995,2467.9,2467.7,0.72354362]
[1728814140196,0.80476,2467.9,2467.6,3.626]
[1728814140393,1.2104,2467.9,2467.7,0.72355275]
[1728814140696,2.80476499,2467.9,2467.6,5.6233062]
[1728814140894,1.06291748,2467.7,2467.6,5.6233062]
[1728814141103,1.06291748,2467.7,2467.6,6.39769088]
[1728814141396,2.65728247,2467.8,2467.6,9.98732902]
[1728814141598,1.06291748,2467.8,2467.7,3.49520959]
[1728814141997,1.06291748,2467.8,2467.7,3.495181]
[1728814143488,1.06291748,2467.8,2467.7,1.90319043]
[1728814143693,2.80476499,2467.9,2467.7,2.98830099]
[1728814143694,2.27331748,2467.9,2467.7,2.98830099]
[1728814143901,1.06291748,2467.8,2467.7,2.09886993]
[1728814144202,2.27331748,2467.9,2467.7,3.4949717]
[1728814144392,2.27331748,2467.9,2467.7,1.59199057]
[1728814145600,2.67857748,2467.9,2467.7,1.59199057]
[1728814146196,2.27331748,2467.9,2467.7,1.59199057]
[1728814157000,2.27331748,2467.9,2467.7,1.99727057]
[1728814157201,2.27331748,2467.9,2467.7,1.59199057]
[1728814160728,2.27331748,2467.9,2467.7,1.99727057]
[1728814161129,2.27331748,2467.9,2467.8,1.06108586]
[1728814161526,2.27331748,2467.9,2467.8,3.49494024]
[1728814161824,2.27331748,2467.9,2467.8,3.89134024]
[1728814162428,2.27331748,2467.9,2467.8,3.67465748]
[1728814162621,2.27331748,2467.9,2467.8,3.38448694]
[1728814162816,2.27331748,2467.9,2467.8,3.89135693]
[1728814164224,2.27331748,2467.9,2467.8,3.16778718]
[1728814164424,2.27331748,2467.9,2467.8,3.38451523]
[1728814164733,2.27331748,2467.9,2467.8,3.67465801]
[1728814165226,2.27331748,2467.9,2467.8,3.89139505]
[1728814165425,1.2104,2467.9,2467.8,3.89139505]
[1728814165626,2.27357526,2467.9,2467.8,3.89139505]
[1728814166028,2.27357526,2467.9,2467.8,4.39827251]
[1728814166430,2.27366061,2467.9,2467.8,4.39827251]
[1728814167134,1.2104,2467.9,2467.8,4.39827251]
[1728814167329,2.27365341,2467.9,2467.8,4.39827251]
[1728814167535,2.27368126,2467.9,2467.8,4.39827251]
[1728814167731,1.2104,2467.9,2467.8,4.39827251]
[1728814168033,2.27368717,2467.9,2467.8,4.39827251]
[1728814169932,1.06328717,2467.9,2467.8,8.01135251]
[1728814170129,1.06328717,2467.9,2467.8,7.59934301]
[1728814170334,1.06328717,2467.9,2467.8,6.4199464]
[1728814170540,1.06328717,2467.9,2467.8,6.419947]
[1728814174235,1.06328717,2467.9,2467.8,6.20320936]
[1728814174545,1.06328717,2467.9,2467.8,3.21209902]
[1728814174840,1.06328717,2467.9,2467.8,3.21202151]
[1728814175342,1.06328717,2467.9,2467.8,2.70515068]
[1728814177441,1.06328717,2467.9,2467.8,4.82782561]
[1728814178144,1.06328717,2467.9,2467.8,4.82784782]
[1728814179542,1.06328717,2467.9,2467.8,4.82812845]
[1728814179936,1.06328717,2467.9,2467.8,4.89642148]
[1728814180142,1.06328717,2467.9,2467.8,4.42284845]
[1728814180648,1.06328717,2467.9,2467.8,1.90377352]
[1728814180649,1.59436499,2467.9,2467.8,1.90377352]
[1728814181547,1.59436499,2467.9,2467.8,1.18018419]
[1728814181743,1.59436499,2467.9,2467.8,1.90385265]
[1728814181941,1.59436499,2467.9,2467.8,4.42942758]
[1728814183556,1.59436499,2467.9,2467.8,5.30841057]
[1728814184250,1.59436499,2467.9,2467.8,4.9035035]
[1728814184453,1.59436499,2467.9,2467.8,5.71446388]
[1728814184650,1.59436499,2467.9,2467.8,6.11974388]
[1728814185254,1.59436499,2467.9,2467.8,4.11141205]
[1728814185548,1.59436499,2467.9,2467.8,5.42921737]
[1728814185741,1.59436499,2467.9,2467.8,6.93073664]
[1728814186149,1.59436499,2467.9,2467.8,6.11977952]
[1728814188748,1.59436499,2467.9,2467.8,5.71449952]
[1728814188952,1.59436499,2467.9,2467.8,5.7144937]
[1728814189252,1.59436499,2467.9,2467.8,5.71448897]
[1728814191157,1.59436499,2467.9,2467.8,6.11976897]
[1728814191846,1.59436499,2467.9,2467.8,5.71448897]
[1728814192646,1.59436499,2467.9,2467.8,6.11976897]
[1728814192841,1.59436499,2467.9,2467.8,5.39608071]
[1728814193046,1.59436499,2467.9,2467.8,6.11978015]
[1728814193259,1.59436499,2467.9,2467.8,6.11978053]
[1728814194150,1.59436499,2467.9,2467.8,8.48085205]